bitfinex-derivatives/quotes_ETHF0:USTF0_20250531
["timestamp","ask_amount","ask_price","bid_price","bid_amount"]
[1748676335877,6.50732527,2520.6,2520.1,4.00707593]
[1748676336181,4.00104,2520.4,2520.2,0.79326]
[1748676336379,4.00104,2520.4,2520.1,0.00595593]
[1748676336784,1.49535574,2520.3,2520.2,0.79326]
[1748676336981,2.28861574,2520.3,2520.2,0.79326]
[1748676337382,1.49535574,2520.3,2520.2,0.79326]
[1748676337683,1.49535574,2520.3,2520.2,1.45896]
[1748676337982,1.49535574,2520.3,2520.2,2.77286]
[1748676338184,3.2078,2520.4,2520.3,0.79326]
[1748676338778,4.70188454,2520.4,2520.3,0.79326]
[1748676341186,1.49408454,2520.4,2520.3,0.79326]
[1748676341690,1.49408454,2520.4,2520.3,2.06156]
[1748676341986,1.49408454,2520.4,2520.3,0.79326]
[1748676347195,2.28730454,2520.4,2520.3,0.79326]
[1748676347395,1.49408454,2520.4,2520.3,0.79326]
[1748676348600,2.28730454,2520.4,2520.3,0.79326]
[1748676349505,1.49408454,2520.4,2520.3,0.79326]
[1748676349803,2.28730454,2520.4,2520.3,0.79326]
[1748676351404,1.49408454,2520.4,2520.3,0.79326]
[1748676352005,1.49408454,2520.4,2520.3,0.86481339]
[1748676352701,1.49408454,2520.4,2520.3,2.18691339]
[1748676353104,1.49408454,2520.4,2520.3,2.11536]
[1748676353603,5.27722953,2520.6,2520.5,0.79319]
[1748676354098,0.79319,2520.5,2520.4,0.7932]
[1748676354506,2.28940342,2520.5,2520.4,0.7932]
[1748676354701,1.49621342,2520.5,2520.4,0.7932]
[1748676355310,2.28940342,2520.5,2520.4,0.7932]
[1748676355500,3.59400342,2520.5,2520.4,0.7932]
[1748676355808,2.80081342,2520.5,2520.4,0.7932]
[1748676356007,3.59400342,2520.5,2520.4,0.7932]
[1748676356808,2.80081342,2520.5,2520.4,0.7932]
[1748676357206,3.59400342,2520.5,2520.4,0.7932]
[1748676357608,2.80081342,2520.5,2520.4,0.7932]
[1748676358506,1.49621342,2520.5,2520.4,0.7932]
[1748676358707,1.49621342,2520.5,2520.4,9.001]
[1748676359102,0.46801342,2520.5,2520.4,9.001]
[1748676359403,0.01196953,2520.6,2520.5,0.79319]
[1748676359602,0.01196953,2520.6,2520.5,6.57259]
[1748676359901,0.01196953,2520.6,2520.5,11.57259]
[1748676362412,0.01196953,2520.6,2520.5,6.57259]
[1748676362708,0.01196953,2520.6,2520.5,11.57259]
[1748676364505,9.53e-06,2520.6,2520.5,11.57259]
[1748676366309,9.53e-06,2520.6,2520.5,11.96312112]
[1748676372416,9.53e-06,2520.6,2520.5,12.64022112]
[1748676374920,9.53e-06,2520.6,2520.5,15.84802112]
[1748676376421,9.53e-06,2520.6,2520.5,10.84802112]
[1748676377611,9.53e-06,2520.6,2520.5,7.64022112]
[1748676377921,9.53e-06,2520.6,2520.5,10.84802112]
[1748676378124,9.53e-06,2520.6,2520.5,9.13029]
[1748676378718,9.53e-06,2520.6,2520.5,7.80699]
[1748676379118,9.53e-06,2520.6,2520.5,7.80299]
[1748676381723,9.53e-06,2520.6,2520.5,4.59519]
[1748676381922,9.53e-06,2520.6,2520.5,7.80299]
[1748676383326,9.53e-06,2520.6,2520.5,4.59519]
[1748676383520,9.53e-06,2520.6,2520.5,7.80299]
[1748676387330,9.53e-06,2520.6,2520.5,4.59519]
[1748676387730,9.53e-06,2520.6,2520.5,7.80299]
[1748676393239,9.53e-06,2520.6,2520.5,4.00099]
[1748676393440,9.53e-06,2520.6,2520.5,7.80299]
[1748676395944,1.3457,2520.7,2520.6,0.79316]
[1748676397239,1.26965593,2520.8,2520.7,0.79313]
[1748676398048,0.00595593,2520.8,2520.7,0.79313]
[1748676398238,0.00595593,2520.8,2520.7,2.13053]
[1748676402344,0.00595593,2520.8,2520.7,5.33833]
[1748676404748,0.00595593,2520.8,2520.7,2.13053]
[1748676404949,0.00595593,2520.8,2520.7,5.33833]
[1748676415948,0.00595593,2520.8,2520.7,2.13053]
[1748676416151,0.00595593,2520.8,2520.7,5.33833]
[1748676422056,0.00595593,2520.8,2520.7,4.00093]
[1748676422462,5.00595593,2520.8,2520.7,3.2078]
[1748676422770,5.00595593,2520.8,2520.7,0.79313]
[1748676423668,5.67085593,2520.8,2520.7,0.79313]
[1748676424066,5.67085593,2520.8,2520.5,3.802]
[1748676424266,1.2769,2520.7,2520.6,0.79316]
[1748676426269,1.9504,2520.7,2520.6,0.79316]
[1748676430268,6.9504,2520.7,2520.6,0.79316]
[1748676433463,1.9504,2520.7,2520.6,0.79316]
[1748676439076,1.9504,2520.7,2520.5,3.802]
[1748676439284,0.7932,2520.5,2520.3,3.8]
[1748676439486,1.2994,2520.4,2520.3,4.59322]
[1748676439776,1.9657,2520.4,2520.3,4.59322]
[1748676449682,1.2994,2520.4,2520.3,4.59322]
[1748676450786,3.2078,2520.6,2520.5,0.79319]
[1748676451088,4.00096,2520.6,2520.5,0.79319]
[1748676451278,3.2078,2520.6,2520.5,0.79319]
[1748676451894,4.69667999,2520.6,2520.5,0.79319]
[1748676452994,4.69667999,2520.6,2520.5,1.46709]
[1748676453794,1.3111,2520.7,2520.6,0.79316]
[1748676453994,0.67085593,2520.8,2520.7,0.79313]
[1748676454294,0.00595593,2520.8,2520.7,0.79313]
[1748676455391,1.49564453,2520.8,2520.7,4.59213]
[1748676463296,2.28874453,2520.8,2520.7,4.59213]
[1748676465093,3.59984453,2520.8,2520.7,4.59213]
[1748676465295,4.23934453,2520.8,2520.7,3.799]
[1748676466597,4.23934453,2520.8,2520.7,4.59213]
[1748676468398,3.44624453,2520.8,2520.7,4.59213]
[1748676469502,1.49564453,2520.8,2520.7,4.59213]
[1748676470495,0.00595593,2520.8,2520.7,4.59213]
[1748676471895,0.79905593,2520.8,2520.7,0.79313]
[1748676472101,0.79314,2520.7,2520.6,0.79313]
[1748676472599,2.14344,2520.7,2520.6,0.79313]
[1748676473205,3.64124467,2520.7,2520.6,0.79313]
[1748676475898,2.84810467,2520.7,2520.6,0.79313]
[1748676476102,3.64123467,2520.7,2520.6,0.79313]
[1748676476309,2.84810467,2520.7,2520.6,0.79313]
[1748676476915,3.64123467,2520.7,2520.6,0.79313]
[1748676477308,2.84810467,2520.7,2520.6,0.79313]
[1748676480816,3.64126467,2520.7,2520.5,0.6739]
[1748676481010,1.316,2520.6,2520.5,1.46709]
[1748676482621,1.316,2520.6,2520.5,0.79319]
[1748676482822,2.10916,2520.6,2520.4,4.5922]
[1748676483025,0.649,2520.5,2520.4,4.5922]
[1748676483223,1.965,2520.5,2520.4,4.5922]
[1748676483413,0.79326,2520.3,2520.2,4.59027]
[1748676483618,2.10924,2520.4,2520.3,0.79326]
[1748676484527,3.60706663,2520.4,2520.3,0.79326]
[1748676485725,2.81382663,2520.4,2520.3,0.79326]
[1748676485926,3.60704663,2520.4,2520.3,0.79326]
[1748676486225,2.81382663,2520.4,2520.3,0.79326]
[1748676486730,1.316,2520.4,2520.3,0.79326]
[1748676486924,2.10922,2520.4,2520.3,0.79326]
[1748676487229,3.60614045,2520.4,2520.3,0.79326]
[1748676490527,0.79326,2520.3,2520.2,4.59026]
[1748676490729,2.07156,2520.3,2520.2,4.59026]
[1748676492725,1.2783,2520.3,2520.2,4.59026]
[1748676493727,2.07156,2520.3,2520.2,4.59026]
[1748676494028,1.46604,2520.4,2520.3,0.79326]
[1748676494427,1.46604,2520.4,2520.3,1.46726]
[1748676494627,2.96122008,2520.4,2520.3,1.46726]
[1748676497234,0.79326,2520.3,2520.2,4.59029]
[1748676497431,2.06866,2520.3,2520.2,3.797]
[1748676497631,2.06866,2520.3,2520.2,4.59029]
[1748676498133,3.56384008,2520.3,2520.2,4.59029]
[1748676498732,2.06866,2520.3,2520.2,4.59029]
[1748676501233,1.2754,2520.3,2520.2,4.59029]
[1748676501833,1.46604,2520.4,2520.3,0.79326]
[1748676502231,1.46604,2520.4,2520.3,0.86481339]
[1748676502431,2.82104,2520.4,2520.3,0.86481339]
[1748676502938,4.31580095,2520.4,2520.3,0.86481339]
[1748676503732,9.31580095,2520.4,2520.3,0.07155339]
[1748676503933,0.79329,2520.2,2520.1,0.00595593]
[1748676504234,4.00109,2520.2,2520.1,0.00595593]
[1748676504626,4.65399,2520.2,2520.1,0.00595593]
[1748676505135,6.14875095,2520.2,2520.1,0.00595593]
[1748676514440,6.14875095,2520.2,2520.1,0.07750932]
[1748676514635,2.94095095,2520.2,2520.1,0.07750932]
[1748676514841,6.14875095,2520.2,2520.1,0.07750932]
[1748676515249,0.79341,2519.8,2519.7,0.6314]
[1748676515437,3.2078,2519.8,2519.2,1.45229]
[1748676515744,0.79357,2519.3,2519.2,2.07879]
[1748676515940,4.00135,2519.4,2519.3,0.79357]
[1748676516145,3.2078,2519.4,2519.3,2.11177]
[1748676517047,0.79352,2519.5,2519.4,0.79354]
[1748676517347,0.79352,2519.5,2519.4,2.11174]
[1748676517947,4.00724593,2519.6,2519.5,0.79351]
[1748676518141,3.21375593,2519.6,2519.5,1.45601]
[1748676518345,4.00723593,2519.6,2519.5,1.45601]
[1748676521548,0.79943593,2519.6,2519.5,1.45601]
[1748676521750,4.00723593,2519.6,2519.5,1.45601]
[1748676524044,3.21375593,2519.6,2519.5,1.45601]
[1748676524249,0.00595593,2519.6,2519.5,1.45601]
[1748676525345,0.79943593,2519.6,2519.5,1.45601]
[1748676525748,0.00595593,2519.6,2519.5,1.45601]
[1748676527745,0.79943593,2519.6,2519.5,1.45601]
[1748676528151,0.00595593,2519.6,2519.5,1.45601]
[1748676528351,0.79943593,2519.6,2519.5,1.45601]
[1748676528646,4.00723593,2519.6,2519.5,1.45601]
[1748676529152,3.21375593,2519.6,2519.5,1.45601]
[1748676529548,4.00723593,2519.6,2519.5,1.45601]
[1748676529748,4.00723593,2519.6,2519.5,1.52756339]
[1748676531055,3.21375593,2519.6,2519.5,1.52756339]
[1748676532154,4.00723593,2519.6,2519.5,1.52756339]
[1748676532952,5.50012513,2519.6,2519.5,1.52756339]
[1748676534353,4.70664513,2519.6,2519.5,1.52756339]
[1748676536459,1.49884513,2519.6,2519.5,1.52756339]
[1748676538659,0.00595593,2519.6,2519.5,1.52756339]
[1748676540460,1.50000039,2519.6,2519.5,1.52756339]
[1748676540961,2.29348039,2519.6,2519.5,0.07155339]
[1748676541156,3.66208039,2519.6,2519.5,0.07155339]
[1748676541663,4.32828039,2519.6,2519.5,0.07155339]
[1748676542059,4.32828039,2519.6,2519.5,0.86506339]
[1748676542559,3.53480039,2519.6,2519.5,0.86506339]
[1748676545065,1.50000039,2519.6,2519.5,0.86506339]
[1748676546364,3.49380039,2519.6,2519.5,0.86506339]
[1748676550072,4.28728039,2519.6,2519.5,0.86506339]
[1748676550264,3.49380039,2519.6,2519.5,0.86506339]
[1748676552172,4.28728039,2519.6,2519.5,0.86506339]
[1748676552373,3.49380039,2519.6,2519.5,0.86506339]
[1748676553272,2.85890039,2519.6,2519.5,0.86506339]
[1748676553968,1.50000039,2519.6,2519.5,0.86506339]
[1748676555271,2.29348039,2519.6,2519.5,0.86506339]
[1748676555474,1.50000039,2519.6,2519.5,0.86506339]
[1748676560683,2.29348039,2519.6,2519.5,0.86506339]
[1748676561285,1.50000039,2519.6,2519.5,0.86506339]
[1748676562182,1.50000039,2519.6,2519.5,2.20426339]
[1748676564184,0.00595593,2519.6,2519.5,2.20426339]
[1748676564579,2.78403,2520.1,2519.9,0.79338]
[1748676564580,0.79335,2520.0,2519.9,0.79338]
[1748676564779,5.99184,2520.1,2520.0,1.46175]
[1748676565588,7.48741274,2520.1,2520.0,1.46175]
[1748676569088,6.69407274,2520.1,2520.0,1.46175]
[1748676569289,6.05237274,2520.1,2520.0,1.46175]
[1748676569586,4.70337274,2520.1,2520.0,1.46175]
[1748676571192,5.49669274,2520.1,2520.0,1.46175]
[1748676574788,2.28889274,2520.1,2520.0,1.46175]
[1748676575087,5.49669274,2520.1,2520.0,1.46175]
[1748676577293,5.49669274,2520.1,2520.0,1.53330339]
[1748676577784,4.70337274,2520.1,2520.0,1.53330339]
[1748676579393,4.70337274,2520.1,2520.0,1.46175]
[1748676582295,4.70337274,2520.1,2520.0,1.53330339]
[1748676583288,4.70337274,2520.1,2520.0,1.46175]
[1748676586493,4.70337274,2520.1,2520.0,1.53330339]
[1748676588898,1.49557274,2520.1,2520.0,1.53330339]
[1748676589198,4.70337274,2520.1,2520.0,1.53330339]
[1748676590400,4.70337274,2520.1,2520.0,1.46175]
[1748676590897,1.49557274,2520.1,2520.0,1.46175]
[1748676591095,4.70337274,2520.1,2520.0,1.46175]
[1748676591499,4.70337274,2520.1,2520.0,1.53330339]
[1748676600308,5.49669274,2520.1,2520.0,1.53330339]
[1748676600498,5.49669274,2520.1,2520.0,0.07155339]
[1748676600703,6.12679274,2520.1,2520.0,0.07155339]
[1748676601805,5.33347274,2520.1,2520.0,0.86490339]
[1748676602207,6.66227274,2520.1,2520.0,0.86490339]
[1748676604210,7.45559274,2520.1,2520.0,0.86490339]
[1748676604604,6.66227274,2520.1,2520.0,0.86490339]
[1748676605204,7.45559274,2520.1,2520.0,0.86490339]
[1748676607813,7.45559274,2520.1,2520.0,0.07155339]
[1748676608015,7.45559274,2520.1,2520.0,0.86490339]
[1748676608714,7.45559274,2520.1,2520.0,0.07155339]
[1748676609711,0.79335,2520.0,2519.9,4.58335]
[1748676609909,2.72205,2520.0,2519.9,4.58335]
[1748676610308,4.21762274,2520.0,2519.9,4.58335]
[1748676610614,4.21762274,2520.0,2519.9,4.58338]
[1748676612908,0.7934,2519.9,2519.5,2.62265]
[1748676613115,1.2741,2519.9,2519.8,0.79341]
[1748676613419,3.8379,2520.1,2520.0,0.79335]
[1748676613816,3.8379,2520.1,2520.0,0.86490339]
[1748676614017,4.73132518,2520.1,2520.0,0.86490339]
[1748676616221,6.08192518,2520.1,2520.0,0.86490339]
[1748676616422,7.51604518,2520.1,2520.0,0.86490339]
[1748676616723,6.72272518,2520.1,2520.0,0.86490339]
[1748676617220,7.51604518,2520.1,2520.0,0.86490339]
[1748676617420,6.72272518,2520.1,2520.0,0.86490339]
[1748676618525,6.08192518,2520.1,2520.0,0.86490339]
[1748676618726,4.73132518,2520.1,2520.0,0.86490339]
[1748676618925,4.73132518,2520.1,2520.0,0.79335]
[1748676619828,4.73132518,2520.1,2520.0,0.86490339]
[1748676620825,4.73132518,2520.1,2520.0,4.65490339]
[1748676622028,1.52352518,2520.1,2520.0,4.65490339]
[1748676622227,4.73132518,2520.1,2520.0,4.65490339]
[1748676622427,5.52464518,2520.1,2520.0,4.65490339]
[1748676622627,7.45144518,2520.1,2520.0,4.65490339]
[1748676623028,4.24364518,2520.1,2520.0,4.58335]
[1748676623216,6.65812518,2520.1,2520.0,4.58335]
[1748676623628,7.45144518,2520.1,2520.0,4.58335]
[1748676625925,6.65812518,2520.1,2520.0,4.65490339]
[1748676626530,7.45144518,2520.1,2520.0,4.65490339]
[1748676626934,7.45144518,2520.1,2520.0,4.58335]
[1748676627534,6.65812518,2520.1,2520.0,4.58335]
[1748676627928,6.65812518,2520.1,2520.0,4.65490339]
[1748676631028,6.65812518,2520.1,2520.0,0.86490339]
[1748676632144,5.99052518,2520.1,2520.0,0.79335]
[1748676632844,4.73132518,2520.1,2520.0,0.79335]
[1748676633044,4.73132518,2520.1,2520.0,0.86490339]
[1748676633646,1.52352518,2520.1,2520.0,0.86490339]
[1748676634548,1.3804184,2520.1,2520.0,5.86490339]
[1748676635445,0.00595593,2520.3,2520.2,0.79329]
[1748676635645,0.00595593,2520.3,2520.2,4.58329]
[1748676636040,0.00595593,2520.3,2520.2,5.89749]
[1748676647358,0.00595593,2520.3,2520.2,4.58329]
[1748676647551,1.28115593,2520.3,2520.2,4.58329]
[1748676649259,1.28115593,2520.3,2520.2,4.65484339]
[1748676651160,2.07441593,2520.3,2520.2,0.07155339]
[1748676651457,0.79331,2520.2,2520.0,0.79333]
[1748676651755,0.6717,2520.1,2520.0,0.79333]
[1748676652163,5.94802,2520.1,2520.0,0.79333]
[1748676652465,5.1547,2520.1,2520.0,0.79333]
[1748676652957,5.94802,2520.1,2520.0,0.79333]
[1748676653166,5.1547,2520.1,2520.0,0.79333]
[1748676653462,6.67310547,2520.1,2520.0,0.79333]
[1748676655259,7.46642547,2520.1,2520.0,0.79333]
[1748676655458,6.67310547,2520.1,2520.0,0.79333]
[1748676655853,6.67310547,2520.1,2520.0,1.44443]
[1748676656554,0.00595593,2520.3,2520.2,0.79329]
[1748676657361,1.52503696,2520.3,2520.2,0.86484339]
[1748676657561,1.52503696,2520.3,2520.2,1.49094339]
[1748676657858,0.00595593,2520.3,2520.2,1.49094339]
[1748676658353,0.00595593,2520.3,2520.2,1.41939]
[1748676663561,0.00595593,2520.3,2520.2,1.49094339]
[1748676664564,0.00595593,2520.3,2520.2,1.41939]
[1748676673768,0.00595593,2520.3,2520.1,0.7933]
[1748676673968,1.44813593,2520.3,2520.0,3.786]
[1748676674171,2.07079,2520.2,2520.1,0.7933]
[1748676674377,4.4853,2520.2,2520.1,0.7933]
[1748676676673,1.2775,2520.2,2520.1,0.7933]
[1748676677075,1.2775,2520.2,2520.1,1.4724]
[1748676678174,0.00595593,2520.3,2520.2,0.79329]
[1748676678776,0.00595593,2520.3,2520.2,2.20964339]
[1748676679373,0.00595593,2520.3,2520.2,7.20964339]
[1748676679870,0.00595593,2520.3,2520.2,7.13809]
[1748676683880,5.93e-06,2520.3,2520.2,7.13809]
[1748676689484,5.93e-06,2520.3,2520.2,10.34589]
[1748676690888,5.93e-06,2520.3,2520.2,9.13089]
[1748676696289,5.93e-06,2520.3,2520.2,7.78609]
[1748676698595,5.93e-06,2520.3,2520.2,9.11989]
[1748676706396,5.93e-06,2520.3,2520.2,14.11989]
[1748676707197,0.6182,2521.1,2521.0,0.79303]
[1748676707398,1.2392,2521.1,2521.0,4.57703]
[1748676707699,2.5676,2521.1,2521.0,4.57703]
[1748676714200,0.00595593,2521.3,2521.2,0.79297]
[1748676714801,1.36075593,2521.3,2521.2,0.79297]
[1748676714999,0.6515,2521.7,2521.6,0.79285]
[1748676715196,0.6515,2521.7,2521.6,7.78365]
[1748676719209,1.2835,2521.8,2521.7,0.79281]
[1748676719403,0.00393048,2521.9,2521.8,0.79278]
[1748676722106,1.29933048,2521.9,2521.8,0.79278]
[1748676725610,0.00393048,2521.9,2521.8,0.79278]
[1748676727617,1.36703048,2521.9,2521.8,0.79278]
[1748676734838,0.00393048,2521.9,2521.8,0.79278]
[1748676737638,0.07548387,2521.9,2521.8,0.79278]
[1748676738031,0.07548387,2521.9,2521.8,7.15878]
[1748676738632,0.00393048,2521.9,2521.8,7.15878]
[1748676739238,0.658,2522.7,2522.6,0.79253]
[1748676739434,0.658,2522.7,2522.6,4.57353]
[1748676741541,1.9944,2522.7,2522.6,4.57353]
[1748676741735,4.66601,2523.0,2522.9,0.79244]
[1748676741937,3.8736,2523.0,2522.9,0.79244]
[1748676742132,10.39344807,2523.0,2522.9,0.79244]
[1748676742836,6.72984807,2523.0,2522.9,0.79244]
[1748676743841,0.79245,2522.9,2522.8,0.79245]
[1748676744142,2.09086,2522.9,2522.8,4.57247]
[1748676744939,3.61070807,2522.9,2522.8,4.57247]
[1748676745143,1.51984807,2522.9,2522.8,4.57247]
[1748676745846,0.6658,2523.0,2522.9,0.79244]
[1748676750452,0.6658,2523.0,2522.8,0.79246]
[1748676750752,1.9522,2522.9,2522.8,0.79246]
[1748676750955,1.9522,2522.9,2522.8,4.57246]
[1748676752754,2.74464,2522.9,2522.8,0.79246]
[1748676752957,1.9522,2522.9,2522.8,0.79246]
[1748676754850,2.02375339,2522.9,2522.8,0.79246]
[1748676755757,1.9522,2522.9,2522.8,0.79246]
[1748676756952,2.02375339,2522.9,2522.8,0.79246]
[1748676757866,1.9522,2522.9,2522.8,0.79246]
[1748676759059,3.2078,2523.0,2522.9,0.79244]
[1748676759851,3.2078,2523.0,2522.9,2.12334]
[1748676760056,3.2078,2523.0,2522.9,0.79244]
[1748676760457,4.5421,2523.0,2522.9,0.79244]
[1748676761063,5.33451,2523.0,2522.9,0.79244]
[1748676762063,4.5421,2523.0,2522.9,0.79244]
[1748676762263,3.2078,2523.0,2522.9,0.79244]
[1748676762867,0.6402,2523.1,2523.0,0.79241]
[1748676763959,1.2957,2523.2,2523.1,0.79237]
[1748676764159,1.953,2523.2,2523.1,0.79237]
[1748676764565,3.8613,2523.3,2523.2,0.79234]
[1748676765465,5.38214658,2523.3,2523.2,0.79234]
[1748676767968,5.45369997,2523.3,2523.2,0.79234]
[1748676768669,4.80019997,2523.3,2523.2,0.79234]
[1748676768971,5.52095658,2523.3,2523.2,0.79234]
[1748676769265,0.79234,2523.2,2523.1,4.57136]
[1748676769467,1.3389,2523.2,2523.1,4.57136]
[1748676769666,2.13124,2523.2,2523.1,4.57136]
[1748676769866,3.65208658,2523.2,2523.1,4.57136]
[1748676770168,2.85974658,2523.2,2523.1,4.57136]
[1748676770364,1.52084658,2523.2,2523.1,4.57136]
[1748676778576,6.52084658,2523.2,2522.9,0.79242]
[1748676778776,4.00023,2523.0,2522.9,0.79242]
[1748676778974,3.2078,2523.0,2522.9,0.79242]
[1748676779177,3.2078,2523.0,2522.9,0.79244]
[1748676779475,4.72864658,2523.0,2522.9,0.79244]
[1748676779874,5.52105658,2523.0,2522.9,0.79244]
[1748676780579,0.79244,2522.9,2522.8,0.79245]
[1748676780780,0.79247,2522.8,2522.7,6.48558]
[1748676780980,1.2488,2522.9,2522.7,5.6931]
[1748676781181,1.2488,2522.9,2522.8,0.79247]
[1748676781578,1.2488,2522.9,2522.4,3.21375593]
[1748676781774,3.2078,2522.6,2522.5,0.79256]
[1748676782375,3.2078,2522.6,2522.5,1.45936]
[1748676782782,4.72864658,2522.6,2522.5,1.45936]
[1748676783582,5.52117658,2522.6,2522.5,0.6668]
[1748676783881,6.80507658,2522.6,2522.4,0.79852593]
[1748676784078,0.6782,2522.5,2522.4,0.79852593]
[1748676784482,4.4917,2522.6,2522.5,0.79256]
[1748676784685,3.2078,2522.6,2522.5,1.45276]
[1748676786084,0.79238,2523.1,2523.0,0.7924]
[1748676786287,0.79238,2523.1,2523.0,0.79241]
[1748676786587,0.79241,2523.0,2522.9,3.779]
[1748676787088,0.79245,2522.9,2522.8,3.779]
[1748676787283,4.68365,2522.9,2522.8,3.779]
[1748676788387,7.51563218,2522.9,2522.8,3.779]
[1748676788684,6.72318218,2522.9,2522.8,4.57147]
[1748676788883,4.72888218,2522.9,2522.8,5.23507]
[1748676789085,1.52108218,2522.9,2522.8,5.23507]
[1748676790187,5.99442,2523.3,2523.1,0.79236]
[1748676790686,0.79234,2523.2,2523.1,0.79236]
[1748676790888,5.99443,2523.3,2523.1,0.79236]
[1748676791087,1.52196265,2523.2,2523.1,0.79236]
[1748676791989,2.31430265,2523.2,2523.1,0.79236]
[1748676792582,1.52196265,2523.2,2523.1,0.79236]
[1748676792979,2.31430265,2523.2,2523.1,0.79236]
[1748676793184,1.52196265,2523.2,2523.1,0.79236]
[1748676795491,0.79241,2523.0,2522.9,0.79242]
[1748676795692,1.2996,2523.1,2523.0,0.79241]
[1748676796292,2.82156265,2523.1,2523.0,0.79241]
[1748676797596,1.52196265,2523.1,2523.0,0.79241]
[1748676797792,0.79241,2523.0,2522.6,1.98128]
[1748676797994,1.9752,2523.0,2522.9,0.79244]
[1748676798690,3.49716265,2523.0,2522.9,0.79244]
[1748676798890,4.28957265,2523.0,2522.9,0.79244]
[1748676799797,3.49716265,2523.0,2522.9,0.79244]
[1748676801996,1.52196265,2523.0,2522.9,0.79244]
[1748676802900,1.52196265,2523.1,2523.0,0.79241]
[1748676803997,2.31433265,2523.1,2523.0,0.79241]
[1748676805998,3.67593265,2523.1,2523.0,0.79241]
[1748676807095,0.79241,2523.0,2522.9,1.46881]
[1748676807901,3.67596265,2523.1,2523.0,0.79241]
[1748676808102,2.154,2523.1,2523.0,0.79241]
[1748676808402,0.79241,2523.0,2522.9,0.79242]
[1748676808702,0.79245,2522.9,2522.8,0.79244]
[1748676808891,1.44905,2522.9,2522.8,0.79244]
[1748676809097,1.973,2522.9,2522.8,0.79244]
[1748676809493,2.76544,2522.9,2522.8,0.79244]
[1748676809699,4.29204552,2522.9,2522.8,0.79244]
[1748676811204,3.49960552,2522.9,2522.8,0.79244]
[1748676811698,2.18320552,2522.9,2522.8,0.79244]
[1748676811899,1.52660552,2522.9,2522.8,2.03934]
[1748676813405,1.52660552,2523.0,2522.9,0.79244]
[1748676816107,2.31901552,2523.0,2522.9,0.79244]
[1748676818201,1.52660552,2523.0,2522.9,0.79244]
[1748676820802,2.31901552,2523.0,2522.9,0.79244]
[1748676821307,1.52660552,2523.0,2522.9,0.79244]
[1748676821807,2.31901552,2523.0,2522.9,0.79244]
[1748676822108,1.52660552,2523.0,2522.9,0.79244]
[1748676828908,1.52660552,2523.1,2523.0,0.79241]
[1748676829106,1.52660552,2523.1,2523.0,4.58441]
[1748676831717,3.2078,2523.2,2523.1,0.79237]
[1748676832017,3.2078,2523.2,2523.1,2.76497]
[1748676833219,0.79226,2523.5,2523.4,0.79228]
[1748676833719,4.00006,2523.5,2523.4,0.79228]
[1748676834220,3.2078,2523.5,2523.3,0.79229]
[1748676834518,5.52662849,2523.5,2523.4,0.79228]
[1748676834721,5.52662849,2523.5,2523.1,3.792]
[1748676834722,0.79234,2523.2,2523.1,3.792]
[1748676835022,3.2078,2523.2,2523.1,4.58437]
[1748676835321,4.73435849,2523.2,2523.1,4.58437]
[1748676841720,5.52669849,2523.2,2523.1,4.58437]
[1748676842815,4.73435849,2523.2,2523.1,4.58437]
[1748676844228,1.52655849,2523.2,2523.1,0.79237]
[1748676844423,2.18105849,2523.2,2523.1,0.79237]
[1748676845327,2.97339849,2523.2,2523.1,0.79237]
[1748676845828,0.7924,2523.1,2523.0,0.79239]
[1748676846034,1.9443,2523.1,2523.0,0.79239]
[1748676846531,1.52655849,2523.1,2523.0,0.79239]
[1748676848227,1.52655849,2523.1,2523.0,1.42439]
[1748676853639,1.52655849,2523.1,2523.0,2.05059]
[1748676854638,4.5425,2523.5,2523.4,0.79228]
[1748676854838,5.8699,2523.5,2523.4,0.79228]
[1748676855040,0.79229,2523.4,2523.3,0.79229]
[1748676855234,5.8699,2523.5,2523.4,0.79228]
[1748676855640,6.66215,2523.5,2523.4,0.79228]
[1748676855840,4.5425,2523.5,2523.4,0.79228]
[1748676856336,6.06953453,2523.5,2523.4,0.79228]
[1748676857443,7.37343453,2523.5,2523.4,0.79228]
[1748676858142,1.52703453,2523.5,2523.4,0.79228]
[1748676858343,1.52703453,2523.5,2523.4,2.15218]
[1748676860248,1.59858792,2523.5,2523.4,2.15218]
[1748676866254,0.07155339,2523.5,2523.4,2.15218]
[1748676869357,0.07155339,2523.5,2523.4,2.77978]
[1748676870643,0.07155339,2523.5,2523.4,4.58428]
[1748676872657,0.07155339,2523.5,2523.4,5.92438]
[1748676873457,0.6827,2523.7,2523.6,0.79222]
[1748676873854,0.79228,2523.5,2523.4,3.792]
[1748676874066,0.79227,2523.5,2523.3,4.5843]
[1748676874353,1.9286,2523.4,2523.3,4.5843]
[1748676875356,5.1364,2523.4,2523.3,4.5843]
[1748676875750,5.92868,2523.4,2523.3,4.5843]
[1748676875953,0.79237,2523.2,2523.1,3.792]
[1748676876355,2.03363,2523.3,2523.2,0.79234]
[1748676877061,3.55942772,2523.3,2523.2,0.79234]
[1748676880161,0.79234,2523.2,2523.1,4.58436]
[1748676880363,2.73424,2523.2,2523.1,4.58436]
[1748676881456,4.26003772,2523.2,2523.1,4.58436]
[1748676882064,1.52579772,2523.2,2523.1,4.58436]
[1748676882764,1.52579772,2523.3,2523.2,0.79234]
[1748676884164,2.31810772,2523.3,2523.2,0.79234]
[1748676884770,3.64210772,2523.3,2523.2,0.79234]
[1748676887970,0.79234,2523.2,2523.1,5.25465]
[1748676888573,3.64213772,2523.3,2523.2,0.79234]
[1748676890071,5.52593772,2523.3,2523.2,0.79234]
[1748676890271,5.53211928,2523.3,2523.2,0.79234]
[1748676890772,5.60367267,2523.3,2523.2,0.79234]
[1748676892472,2.39587267,2523.3,2523.2,0.79234]
[1748676892678,5.60367267,2523.3,2523.2,0.79234]
[1748676895981,0.79234,2523.2,2523.1,1.46265]
[1748676896175,0.79234,2523.2,2523.1,5.25865]
[1748676896979,2.31813772,2523.2,2523.1,5.25865]
[1748676897677,2.31813772,2523.2,2523.1,4.4663]
[1748676897978,0.79241,2523.0,2522.9,0.79241]
[1748676898185,0.79246,2522.9,2522.8,0.79245]
[1748676900074,2.05193,2523.0,2522.9,0.79244]
[1748676900279,0.79243,2523.0,2522.9,0.79244]